bitfinex-derivatives/quotes_BTCF0:USTF0_20250108
["timestamp","ask_amount","ask_price","bid_price","bid_amount"]
[1736371917297,0.3608,94316.0,94300.0,0.10855455]
[1736371917596,0.053037,94305.0,94300.0,0.10855455]
[1736371917797,0.053037,94305.0,94300.0,0.16159355]
[1736371917996,0.053037,94304.0,94302.0,0.1661]
[1736371918185,0.3608,94303.0,94275.0,0.3608]
[1736371918386,0.053052,94277.0,94275.0,0.3608]
[1736371918693,0.3608,94289.0,94275.0,0.3608]
[1736371918694,0.3608,94289.0,94275.0,0.42480074]
[1736371918898,0.05305,94282.0,94275.0,0.42480074]
[1736371919397,0.05305,94282.0,94276.0,0.053053]
[1736371919791,0.001,94277.0,94276.0,0.053053]
[1736371920299,0.05305,94282.0,94276.0,0.053053]
[1736371920483,0.05305,94282.0,94275.0,0.37774774]
[1736371920684,0.1271,94288.0,94284.0,0.053048]
[1736371921502,0.36160001,94289.0,94287.0,0.053047]
[1736371921795,0.413846,94289.0,94287.0,0.053047]
[1736371921997,0.3608,94289.0,94276.0,0.002]
[1736371922391,0.3608,94278.0,94276.0,0.002]
[1736371922597,0.288452,94277.0,94273.0,0.01104536]
[1736371922900,0.288452,94277.0,94273.0,0.053054]
[1736371923289,0.288452,94277.0,94260.0,0.35104198]
[1736371923496,0.3628,94278.0,94267.0,0.16221298]
[1736371923808,0.002,94278.0,94277.0,0.053052]
[1736371924292,0.3618,94289.0,94282.0,0.053049]
[1736371924492,0.053046,94288.0,94284.0,0.053048]
[1736371924699,0.3618,94289.0,94271.0,0.1209]
[1736371924900,0.053049,94283.0,94278.0,0.053051]
[1736371925489,0.053054,94274.0,94270.0,0.01226995]
[1736371925799,0.3608,94281.0,94270.0,0.01226995]
[1736371926006,0.053056,94271.0,94270.0,0.01226995]
[1736371926301,0.053056,94271.0,94270.0,0.20109895]
[1736371927895,0.054056,94271.0,94270.0,0.01326995]
[1736371928097,0.001,94271.0,94270.0,0.06632595]
[1736371928600,0.001,94271.0,94270.0,0.06532595]
[1736371928802,0.053049,94283.0,94270.0,0.06532595]
[1736371928994,0.053049,94283.0,94279.0,0.053051]
[1736371929397,0.05305,94281.0,94273.0,0.053054]
[1736371929596,0.053052,94278.0,94273.0,0.053054]
[1736371929801,0.053053,94276.0,94273.0,0.053054]
[1736371929998,0.3608,94279.0,94270.0,0.01826995]
[1736371930193,0.053056,94271.0,94270.0,0.01826995]
[1736371930592,0.053056,94271.0,94270.0,0.00759104]
[1736371930798,0.413856,94271.0,94270.0,0.00959104]
[1736371931195,0.413856,94271.0,94270.0,0.00359104]
[1736371931802,0.053059,94265.0,94264.0,0.19016861]
[1736371932595,0.053059,94265.0,94259.0,0.25355814]
[1736371932807,0.413862,94260.0,94259.0,0.25355814]
[1736371933390,0.413862,94260.0,94245.0,0.36136]
[1736371933391,0.3608,94260.0,94245.0,0.36136]
[1736371933606,0.053067,94252.0,94245.0,0.37199361]
[1736371933811,0.053067,94252.0,94245.0,0.37143361]
[1736371934111,0.053064,94257.0,94253.0,0.053065]
[1736371934802,0.3608,94260.0,94247.0,0.16221298]
[1736371935111,0.3608,94260.0,94245.0,0.37343361]
[1736371935297,0.413862,94260.0,94257.0,0.053063]
[1736371935493,0.3608,94260.0,94257.0,0.053063]
[1736371935698,0.053063,94259.0,94257.0,0.053063]
[1736371935901,0.3608,94260.0,94252.0,0.053066]
[1736371936205,0.3608,94260.0,94257.0,0.053063]
[1736371936596,0.3608,94260.0,94247.0,0.001]
[1736371936796,0.053064,94257.0,94252.0,0.053066]
[1736371936995,0.053064,94257.0,94254.0,0.053065]
[1736371937306,0.3608,94260.0,94254.0,0.053065]
[1736371937603,0.053064,94256.0,94254.0,0.053065]
[1736371938708,0.3618,94260.0,94254.0,0.053065]
[1736371939004,0.053066,94254.0,94248.0,0.053068]
[1736371939200,0.053066,94253.0,94248.0,0.053068]
[1736371939909,0.053067,94251.0,94248.0,0.053068]
[1736371940098,0.413867,94251.0,94248.0,0.053068]
[1736371940300,0.3608,94251.0,94245.0,0.01063361]
[1736371940496,0.053072,94242.0,94241.0,0.25355814]
[1736371940699,0.413872,94242.0,94241.0,0.25355814]
[1736371941907,0.053073,94240.0,94239.0,0.0015915]
[1736371944711,0.053073,94240.0,94235.0,0.01095493]
[1736371944903,0.053073,94240.0,94235.0,0.053076]
[1736371945708,0.054073,94240.0,94235.0,0.053076]
[1736371946106,0.054073,94240.0,94236.0,0.053075]
[1736371946704,0.001,94240.0,94230.0,0.10822612]
[1736371947010,0.001,94240.0,94239.0,0.053074]
[1736371947215,0.1243,94261.0,94236.0,0.3608]
[1736371947407,0.053063,94259.0,94254.0,0.053065]
[1736371947713,0.053063,94259.0,94254.0,0.03106499]
[1736371947908,0.1243,94261.0,94256.0,0.053064]
[1736371948108,0.053063,94258.0,94256.0,0.053064]
[1736371948412,0.053065,94256.0,94250.0,0.053067]
[1736371948599,0.053065,94256.0,94254.0,0.001]
[1736371949122,0.1243,94261.0,94254.0,0.001]
[1736371949412,0.053062,94260.0,94256.0,0.053064]
[1736371949599,0.1243,94261.0,94254.0,0.01166453]
[1736371949803,0.053065,94255.0,94254.0,0.01166453]
[1736371950207,0.053065,94255.0,94254.0,0.01066453]
[1736371950405,0.3608,94258.0,94240.0,0.1216]
[1736371950613,0.3608,94258.0,94244.0,0.053071]
[1736371950814,0.053069,94247.0,94244.0,0.053071]
[1736371951306,0.053067,94252.0,94245.0,0.05307]
[1736371951510,0.053067,94252.0,94240.0,0.13919539]
[1736371951704,0.053064,94257.0,94240.0,0.24742151]
[1736371952017,0.177362,94261.0,94248.0,0.10822612]
[1736371952213,0.177362,94261.0,94257.0,0.053063]
[1736371952413,0.177362,94261.0,94258.0,0.053063]
[1736371952612,0.177362,94261.0,94259.0,0.03106199]
[1736371953013,0.053062,94260.0,94254.0,0.053065]
[1736371953518,0.1243,94261.0,94250.0,0.10822612]
[1736371953723,0.00088001,94266.0,94255.0,0.3608]
[1736371953912,0.1236,94283.0,94257.0,0.053064]
[1736371954113,0.053054,94275.0,94257.0,0.053064]
[1736371954313,0.053054,94275.0,94256.0,0.22922612]
[1736371954509,0.003,94260.0,94259.0,0.053062]
[1736371955613,0.3648,94276.0,94259.0,0.056062]
[1736371955913,0.3648,94276.0,94271.0,0.053056]
[1736371956615,0.417853,94276.0,94271.0,0.053056]
[1736371957219,0.413853,94276.0,94271.0,0.053056]
[1736371957816,0.413853,94276.0,94271.0,0.054056]
[1736371959419,0.413853,94276.0,94271.0,0.001]
[1736371959625,0.413853,94276.0,94272.0,0.053055]
[1736371959825,0.413853,94276.0,94273.0,0.053055]
[1736371960326,0.3608,94276.0,94273.0,0.053055]
[1736371960626,0.053054,94275.0,94273.0,0.053055]
[1736371963029,0.053054,94274.0,94273.0,0.053055]
[1736371963330,0.3608,94276.0,94273.0,0.053055]
[1736371963331,0.21698124,94276.0,94273.0,0.053055]
[1736371964221,0.001,94274.0,94273.0,0.053055]
[1736371964424,0.054054,94274.0,94273.0,0.053055]
[1736371964829,0.053054,94274.0,94273.0,0.053055]
[1736371965024,0.21898124,94276.0,94271.0,0.01091392]
[1736371965220,0.21698124,94276.0,94269.0,0.053057]
[1736371965425,0.053056,94271.0,94270.0,0.053056]
[1736371967035,0.053049,94284.0,94260.0,0.13302421]
[1736371967036,0.2217,94286.0,94268.0,0.3608]
[1736371967234,0.053043,94294.0,94286.0,0.053047]
[1736371967425,0.2344,94305.0,94286.0,0.053047]
[1736371967627,0.19036483,94290.0,94289.0,0.053046]
[1736371967931,0.19036483,94290.0,94289.0,0.413846]
[1736371968319,0.19036483,94290.0,94282.0,1.5006]
[1736371968525,0.19036483,94290.0,94288.0,0.053046]
[1736371968726,0.053044,94293.0,94288.0,0.053046]
[1736371969436,0.053045,94291.0,94288.0,0.053046]
[1736371970026,0.053042,94296.0,94286.0,0.007]
[1736371970326,0.3608,94304.0,94290.0,0.053045]
[1736371970525,0.287437,94305.0,94290.0,0.16223011]
[1736371970526,0.2344,94305.0,94290.0,0.16223011]
[1736371970736,0.053038,94302.0,94290.0,0.16223011]
[1736371971033,0.053038,94302.0,94296.0,0.053041]
[1736371971234,0.053039,94301.0,94296.0,0.053041]
[1736371971435,0.053039,94301.0,94298.0,0.05304]
[1736371971646,0.24339883,94311.0,94306.0,0.053036]
[1736371971838,0.053035,94308.0,94306.0,0.053036]
[1736371972130,0.19036483,94311.0,94306.0,0.053036]
[1736371972324,0.1185,94317.0,94310.0,0.3608]
[1736371972525,0.1185,94317.0,94310.0,0.33879999]
[1736371973430,0.053033,94311.0,94310.0,0.33879999]
[1736371974726,0.057033,94311.0,94310.0,0.33879999]
[1736371975235,0.055033,94311.0,94310.0,0.33879999]
[1736371976838,0.057033,94311.0,94310.0,0.33879999]
[1736371977230,0.057033,94311.0,94310.0,0.39183399]
[1736371977432,0.002,94311.0,94310.0,0.39183399]
[1736371977738,0.002,94311.0,94310.0,0.36983398]
[1736371978437,0.001,94311.0,94310.0,0.36983398]
[1736371978634,0.001,94311.0,94310.0,0.37283398]
[1736371979636,0.053029,94319.0,94316.0,0.05303]
[1736371979829,0.053029,94319.0,94318.0,0.3608]
[1736371981639,0.054029,94319.0,94318.0,0.3608]
[1736371982239,0.054029,94319.0,94308.0,0.01094586]
[1736371982240,0.053034,94309.0,94308.0,0.06397986]
[1736371982435,0.053034,94309.0,94308.0,0.01094586]
[1736371982635,0.001,94319.0,94307.0,0.3608]
[1736371982831,0.164235,94308.0,94307.0,0.3608]
[1736371983649,0.053039,94300.0,94299.0,0.3608]
[1736371985233,0.002,94300.0,94299.0,0.3608]
[1736371985439,0.002,94300.0,94299.0,0.41384]
[1736371986146,0.002,94300.0,94299.0,0.63434]
[1736371986336,0.003,94300.0,94299.0,0.63434]
[1736371986840,0.001,94300.0,94299.0,0.52444]
[1736371987038,0.002,94300.0,94299.0,0.52644]
[1736371987835,0.053033,94312.0,94306.0,0.053036]
[1736371988042,0.053033,94311.0,94306.0,0.053036]
[1736371990554,0.2080626,94320.0,94310.0,0.3608]
[1736371990555,0.05303,94317.0,94310.0,0.3608]
[1736371990850,0.05303,94317.0,94314.0,0.053031]
[1736371991442,0.05303,94317.0,94316.0,0.05303]
[1736371991658,0.1,94320.0,94310.0,0.3608]
[1736371991843,0.1,94320.0,94319.0,0.413829]
[1736371992737,0.1,94340.0,94339.0,0.053017]
[1736371994138,0.1,94340.0,94339.0,0.059017]
[1736371995147,0.1,94340.0,94339.0,0.054017]
[1736371995946,0.1,94340.0,94339.0,0.06461351]
[1736371996547,0.1,94340.0,94339.0,0.17471351]
[1736371997160,0.1,94340.0,94339.0,0.06361351]
[1736371997358,0.1,94340.0,94339.0,0.06461351]
[1736371997546,0.1,94340.0,94339.0,0.01159651]
[1736371997856,0.3404,94349.0,94339.0,0.01159651]
[1736371998246,0.053017,94340.0,94339.0,0.01159651]
[1736371999045,0.3404,94349.0,94322.0,0.25227243]
[1736371999046,0.3608,94342.0,94322.0,0.25227243]
[1736371999247,0.053026,94323.0,94322.0,0.25227243]
[1736371999850,0.053023,94329.0,94313.0,0.01085642]
[1736371999851,0.053031,94315.0,94314.0,0.25227243]
[1736372001055,0.002,94323.0,94312.0,0.0105663]
[1736372001247,0.053032,94314.0,94310.0,0.3608]
[1736372002049,0.053029,94319.0,94310.0,0.3608]
[1736372002254,0.002,94323.0,94319.0,0.053029]
[1736372002564,0.053027,94322.0,94319.0,0.03102899]
[1736372002948,0.22258001,94334.0,94321.0,0.3608]
[1736372003152,0.19010086,94337.0,94321.0,0.3608]
[1736372003153,0.19010086,94337.0,94333.0,0.3608]
[1736372003455,0.19010086,94341.0,94340.0,0.053017]
[1736372004059,0.17885287,94341.0,94340.0,0.053017]
[1736372004362,0.22157951,94356.0,94355.0,0.053008]
[1736372004552,0.22157951,94356.0,94355.0,0.413808]
[1736372004752,0.053001,94369.0,94359.0,0.053006]
[1736372007049,0.102,94360.0,94359.0,0.053006]
[1736372007253,0.102,94360.0,94359.0,0.06357306]
[1736372008157,0.07261947,94360.0,94359.0,0.06357306]
[1736372008358,0.06147014,94360.0,94359.0,0.06357306]
[1736372010568,0.05456998,94360.0,94359.0,0.06357306]
[1736372017766,0.04078998,94360.0,94359.0,0.06357306]
[1736372018270,0.01321998,94360.0,94359.0,0.36357306]
[1736372018469,0.00480965,94360.0,94359.0,0.36357306]
[1736372018971,0.00480965,94360.0,94359.0,1.86357306]
[1736372019365,0.00480965,94360.0,94359.0,1.56357306]
[1736372019567,0.1205,94377.0,94376.0,0.052997]
[1736372019761,0.1205,94377.0,94376.0,0.413797]
[1736372022258,0.1205,94377.0,94376.0,0.414797]
[1736372022971,0.1205,94377.0,94376.0,0.418797]
[1736372023367,0.1205,94377.0,94376.0,0.414797]
[1736372023567,0.1205,94377.0,94376.0,0.417797]
[1736372024268,0.1,94380.0,94379.0,0.052995]
[1736372025972,0.101,94380.0,94379.0,0.058995]
[1736372026369,0.07916902,94380.0,94379.0,0.060995]
[1736372026561,0.05049099,94400.0,94399.0,0.052984]
[1736372026766,0.3608,94427.0,94419.0,0.052973]
[1736372026961,0.112,94426.0,94419.0,0.052973]
[1736372027669,0.112,94426.0,94419.0,0.03097299]
[1736372028862,0.112,94426.0,94419.0,0.04186038]
[1736372029072,0.112,94426.0,94414.0,0.413775]
[1736372029262,0.052976,94414.0,94412.0,0.01069513]
[1736372029460,0.3608,94413.0,94405.0,0.05298]
[1736372030074,0.413776,94413.0,94405.0,0.05298]
[1736372030263,0.052978,94410.0,94405.0,0.05298]
[1736372030468,0.05298,94406.0,94400.0,0.01067756]
[1736372030663,0.3608,94403.0,94400.0,0.052983]
[1736372031072,0.3608,94403.0,94399.0,0.00158882]
[1736372031266,0.052983,94400.0,94399.0,0.00158882]
[1736372032067,0.052983,94401.0,94389.0,0.052989]
[1736372032279,0.052985,94397.0,94389.0,0.052989]
[1736372032472,0.21947327,94400.0,94389.0,0.01049499]
[1736372032671,0.052985,94396.0,94391.0,0.052988]
[1736372033381,0.3608,94392.0,94391.0,0.052988]
[1736372035881,0.3618,94392.0,94391.0,0.052988]
[1736372037781,0.3618,94392.0,94391.0,0.03098799]
[1736372038369,0.3608,94392.0,94391.0,0.03098799]
[1736372039186,0.3608,94392.0,94391.0,0.03198799]
[1736372039383,0.1116,94400.0,94398.0,0.052984]
[1736372039786,0.1116,94400.0,94399.0,0.052984]
[1736372040884,0.164583,94400.0,94399.0,0.052984]
[1736372042391,0.166583,94400.0,94399.0,0.052984]
[1736372042590,0.1136,94400.0,94391.0,0.01044168]
[1736372042783,0.1136,94400.0,94384.0,0.3608]
[1736372042784,0.052986,94395.0,94394.0,0.052986]
[1736372044889,0.052988,94392.0,94391.0,0.002]
[1736372045093,0.052992,94385.0,94384.0,0.07797243]
[1736372045387,0.3608,94385.0,94348.0,0.1136]
[1736372045592,0.3608,94368.0,94367.0,0.053002]
[1736372045889,0.3608,94368.0,94354.0,0.3608]
[1736372046088,0.053005,94361.0,94357.0,0.053007]
[1736372047193,0.053005,94361.0,94356.0,0.01043232]
[1736372047688,0.053005,94361.0,94350.0,0.053011]
[1736372047893,0.053005,94361.0,94355.0,0.01045047]
[1736372048283,0.053005,94361.0,94355.0,0.06345847]
[1736372048794,0.054005,94361.0,94355.0,0.06345847]
[1736372049191,0.054005,94361.0,94360.0,0.00258948]
[1736372049589,0.054005,94361.0,94360.0,0.00158948]
[1736372049782,0.057005,94361.0,94360.0,0.00158948]
[1736372050697,0.054005,94361.0,94360.0,0.00158948]
[1736372050892,0.058005,94361.0,94360.0,0.00158948]
[1736372051594,0.057005,94361.0,94360.0,0.00158948]
[1736372051796,0.059005,94361.0,94360.0,0.00158948]
[1736372053083,0.059005,94361.0,94360.0,0.05459548]
[1736372053286,0.059005,94361.0,94360.0,0.00158948]
[1736372053788,0.058005,94361.0,94360.0,0.00158948]
[1736372054597,0.056005,94361.0,94360.0,0.00158948]
[1736372056098,0.054005,94361.0,94360.0,0.00158948]
[1736372056489,0.055005,94361.0,94360.0,0.05459548]
[1736372056691,0.055005,94361.0,94360.0,0.053006]
[1736372056891,0.053005,94361.0,94360.0,0.053006]
[1736372057087,0.054005,94361.0,94360.0,0.053006]
[1736372057494,0.3608,94364.0,94363.0,0.053004]
[1736372058795,0.3618,94364.0,94363.0,0.053004]
[1736372060001,0.3628,94364.0,94363.0,0.053004]
[1736372060495,0.415803,94364.0,94363.0,0.053004]
[1736372060696,0.414803,94364.0,94363.0,0.053004]
[1736372060903,0.3628,94364.0,94361.0,0.226]
[1736372061098,0.3618,94364.0,94357.0,0.053007]
[1736372061303,0.3628,94364.0,94357.0,0.053007]
[1736372061602,0.3628,94364.0,94355.0,0.01045047]
[1736372061603,0.053008,94356.0,94355.0,0.01045047]
[1736372061806,0.053008,94356.0,94355.0,0.053008]
[1736372062891,0.054008,94356.0,94355.0,0.053008]
[1736372063500,0.001,94356.0,94355.0,0.053008]
[1736372064104,0.002,94356.0,94355.0,0.053008]
[1736372064304,0.002,94356.0,94355.0,0.06633126]
[1736372064898,0.055008,94356.0,94355.0,0.01332326]
[1736372065099,0.055008,94356.0,94352.0,0.05301]
[1736372065601,0.3608,94364.0,94357.0,0.053007]
[1736372065798,0.053005,94361.0,94360.0,0.053006]
[1736372066001,0.3608,94364.0,94363.0,0.053004]
[1736372066703,0.3608,94364.0,94363.0,1.553004]
[1736372066900,0.55098717,94381.0,94363.0,1.553004]
[1736372067101,0.55098717,94381.0,94380.0,0.052994]
[1736372067297,0.3608,94381.0,94380.0,0.052994]
[1736372067702,0.3608,94381.0,94380.0,0.03099399]
[1736372068111,0.052989,94389.0,94385.0,0.052991]
[1736372068609,0.052989,94389.0,94374.0,0.2221]
[1736372068807,0.052989,94389.0,94386.0,0.052991]
[1736372069104,0.052989,94389.0,94387.0,0.05299]
[1736372069305,0.052988,94393.0,94382.0,0.3608]
[1736372069608,0.47450001,94407.0,94385.0,0.001]
[1736372069806,0.05298,94406.0,94400.0,0.052983]
[1736372070004,0.3608,94407.0,94392.0,0.3608]
[1736372070309,0.24316417,94412.0,94409.0,0.052978]
[1736372070811,0.052977,94412.0,94411.0,0.052977]
[1736372072113,0.056977,94412.0,94411.0,0.052977]
[1736372072508,0.063977,94412.0,94411.0,0.053977]
[1736372072708,0.063977,94412.0,94411.0,0.03197699]
[1736372073306,0.011,94412.0,94411.0,0.03197699]
[1736372074011,0.062976,94412.0,94411.0,0.001]
[1736372076109,0.062976,94412.0,94411.0,0.053977]
[1736372076723,0.01,94412.0,94411.0,0.053977]
[1736372077709,0.01,94412.0,94411.0,0.03197699]
[1736372078410,0.062976,94412.0,94411.0,0.03197699]
[1736372078609,0.062976,94412.0,94411.0,0.01656873]
[1736372078815,0.01,94412.0,94408.0,0.052979]
[1736372079108,0.052978,94409.0,94408.0,0.052979]
[1736372080318,0.01,94412.0,94411.0,0.052977]
[1736372080706,0.052976,94412.0,94411.0,0.052977]
[1736372080919,0.055976,94412.0,94411.0,0.052977]
[1736372081307,0.061976,94412.0,94411.0,0.052977]
[1736372081617,0.052978,94409.0,94408.0,0.001]
[1736372081816,0.052979,94407.0,94406.0,0.052979]
[1736372082618,0.052979,94407.0,94406.0,0.03097899]
[1736372083016,0.057979,94407.0,94406.0,0.03097899]
[1736372084510,0.05298,94406.0,94404.0,0.01703278]
[1736372084715,0.05298,94406.0,94402.0,0.3608]
[1736372084916,0.05298,94406.0,94403.0,0.052981]
[1736372086512,0.05398,94406.0,94403.0,0.052981]
[1736372087616,0.05698,94406.0,94403.0,0.03098099]
[1736372087913,0.05698,94406.0,94401.0,0.01642257]
[1736372087914,0.004,94406.0,94401.0,0.01642257]
[1736372088113,0.004,94406.0,94391.0,0.3608]
[1736372088315,0.052985,94397.0,94391.0,0.3608]
[1736372088516,0.052986,94396.0,94394.0,0.052986]
[1736372088710,0.2216,94405.0,94391.0,0.37748295]
[1736372088913,0.052984,94400.0,94391.0,0.37748295]
[1736372089114,0.052981,94405.0,94395.0,0.052986]
[1736372089310,0.002,94406.0,94391.0,0.37748295]
[1736372089311,0.052984,94400.0,94391.0,0.37748295]
[1736372089513,0.003,94406.0,94396.0,0.052985]
[1736372089820,0.003,94406.0,94391.0,0.37748295]
[1736372090020,0.003,94406.0,94402.0,0.052982]
[1736372090021,0.052981,94404.0,94402.0,0.052982]
[1736372090210,0.003,94406.0,94400.0,0.3608]
[1736372090513,0.003,94406.0,94405.0,0.05298]
[1736372091022,0.002,94406.0,94405.0,0.05298]
[1736372091723,0.052979,94407.0,94405.0,0.05298]
[1736372091922,0.002,94406.0,94405.0,0.05298]
[1736372092716,0.002,94406.0,94405.0,0.03097999]
[1736372092717,0.004,94406.0,94405.0,0.03097999]
[1736372094313,0.006,94406.0,94405.0,0.03097999]
[1736372095813,0.006,94406.0,94405.0,0.04799904]
[1736372096718,0.006,94406.0,94405.0,0.01701905]
[1736372096911,0.006,94406.0,94402.0,0.052982]
[1736372097820,0.006,94406.0,94403.0,0.052981]
[1736372098120,0.001,94406.0,94403.0,0.052981]
[1736372098320,0.004,94406.0,94403.0,0.052981]
[1736372098920,0.003,94406.0,94404.0,0.3608]
[1736372099120,0.3608,94405.0,94350.0,0.10787327]
[1736372099420,0.3608,94366.0,94335.0,1.6e-07]
[1736372099726,0.3608,94366.0,94306.0,0.3608]
[1736372099727,0.7216,94336.0,94316.0,0.05303]
[1736372099907,0.3608,94323.0,94316.0,0.05303]
[1736372100107,0.3608,94340.0,94322.0,0.3608]
[1736372100311,0.3608,94358.0,94337.0,0.7216]
[1736372100515,0.3608,94370.0,94348.0,0.10787327]
[1736372100709,0.1113,94368.0,94357.0,0.3608]
[1736372100919,0.3608,94362.0,94351.0,0.05301]
[1736372101515,0.3608,94362.0,94345.0,0.3608]
[1736372101723,0.3608,94362.0,94346.0,0.053013]
[1736372101919,0.1113,94368.0,94361.0,0.053005]
[1736372102109,0.3608,94372.0,94358.0,0.10787327]
[1736372102421,0.3608,94372.0,94359.0,0.3608]
[1736372102607,0.2344672,94361.0,94360.0,0.053006]
[1736372102812,0.105,94382.0,94360.0,0.47504]
[1736372103022,0.1072,94393.0,94379.0,0.3608]
[1736372103221,0.2209,94393.0,94392.0,0.052988]
[1736372103417,0.2209,94393.0,94380.0,1.60787327]
[1736372103615,0.21199084,94392.0,94390.0,0.052989]
[1736372104418,0.2209,94393.0,94392.0,0.052988]
[1736372104721,0.22193401,94404.0,94389.0,0.05299]
[1736372104919,0.22193401,94404.0,94403.0,0.052982]
[1736372105432,0.22193401,94414.0,94413.0,0.052977]
[1736372105614,0.22193401,94414.0,94398.0,0.3608]
[1736372105922,0.3608,94405.0,94380.0,0.46867327]
[1736372106118,0.3608,94396.0,94390.0,0.10787327]
[1736372106315,0.3608,94396.0,94395.0,0.052987]
[1736372107827,0.3648,94396.0,94395.0,0.03098699]
[1736372108523,0.23093401,94414.0,94403.0,0.052983]
[1736372108713,0.23093401,94414.0,94413.0,0.052977]
[1736372109724,0.22193401,94414.0,94413.0,0.052977]
[1736372110311,0.22493401,94414.0,94413.0,0.052977]
[1736372110924,0.003,94414.0,94413.0,0.052977]
[1736372111124,0.004,94414.0,94413.0,0.052977]
[1736372111424,0.004,94414.0,94388.0,0.3608]
[1736372111631,0.3608,94401.0,94390.0,0.10787327]
[1736372111823,0.2217,94400.0,94391.0,0.052989]
[1736372112027,0.003,94414.0,94413.0,0.052977]
[1736372112221,0.32031672,94414.0,94413.0,0.052977]
[1736372112420,0.20921672,94414.0,94413.0,0.052977]
[1736372112618,0.20921672,94414.0,94413.0,1.552977]
[1736372113028,0.20721672,94414.0,94413.0,1.552977]
[1736372113424,0.20721672,94414.0,94413.0,0.052977]
[1736372113926,0.20921672,94414.0,94413.0,0.052977]
[1736372114429,0.15861001,94414.0,94413.0,0.052977]
[1736372114935,0.15861001,94414.0,94413.0,0.053977]
[1736372116316,0.002,94414.0,94413.0,0.053977]
[1736372116723,0.1,94420.0,94419.0,0.052973]
[1736372117825,0.045013,94420.0,94419.0,0.052973]
[1736372118017,0.22193401,94438.0,94429.0,0.052967]
[1736372118221,0.22193401,94438.0,94437.0,0.052963]
[1736372118523,0.1,94440.0,94427.0,0.30994114]
[1736372118722,0.1,94440.0,94439.0,0.052962]
[1736372118915,0.1,94440.0,94414.0,0.57152]
[1736372118916,0.1,94440.0,94414.0,0.47496]
[1736372119120,0.3608,94429.0,94426.0,0.052969]
[1736372119720,0.3608,94429.0,94420.0,0.052972]
[1736372119927,0.3608,94429.0,94421.0,0.052972]
[1736372120127,0.052968,94428.0,94416.0,0.004]
[1736372120518,0.32243366,94440.0,94428.0,0.052968]
[1736372120722,0.3608,94437.0,94435.0,0.052964]
[1736372121529,0.2059922,94436.0,94435.0,0.052964]
[1736372122032,0.2059922,94436.0,94429.0,0.052967]
[1736372122218,0.3608,94434.0,94423.0,0.052971]
[1736372122536,0.3608,94424.0,94397.0,0.3608]
[1736372122836,0.3608,94434.0,94390.0,0.47548]
[1736372122837,0.3608,94407.0,94390.0,0.47548]
[1736372123024,0.2197,94406.0,94404.0,0.052982]
[1736372124222,0.2059922,94405.0,94390.0,0.47492]
[1736372124827,0.2059922,94405.0,94398.0,0.052985]
[1736372125134,0.2059922,94405.0,94403.0,0.052982]
[1736372125731,0.1135,94404.0,94403.0,0.052982]
[1736372125924,0.33477366,94404.0,94403.0,0.052982]
[1736372127726,0.3194922,94404.0,94403.0,0.03098199]
[1736372127929,0.3204922,94404.0,94403.0,0.03098199]
[1736372128135,0.6812922,94404.0,94403.0,0.03098199]
[1736372128730,0.6822922,94404.0,94403.0,0.03098199]
[1736372129237,0.6842922,94404.0,94403.0,0.03098199]
[1736372129935,0.86415884,94404.0,94403.0,0.03098199]
[1736372131021,0.6812922,94404.0,94403.0,0.03098199]
[1736372131224,0.0804082,94404.0,94403.0,0.03098199]
[1736372131421,0.20569022,94410.0,94409.0,0.052979]
[1736372131832,0.20569022,94410.0,94409.0,1.552979]
[1736372132229,0.3608,94422.0,94403.0,0.03098199]
[1736372132429,0.001,94410.0,94403.0,0.03098199]
[1736372132630,0.004,94410.0,94409.0,0.052979]
[1736372134327,0.0033021,94414.0,94413.0,0.052977]
[1736372134524,0.25288418,94431.0,94430.0,0.052967]
[1736372135935,0.25288418,94431.0,94430.0,0.053967]
[1736372136332,0.17338947,94437.0,94430.0,0.002]
[1736372136842,0.17338947,94437.0,94436.0,0.052963]
[1736372137231,0.1106,94438.0,94436.0,0.052963]
[1736372138541,0.052963,94437.0,94430.0,0.058966]
[1736372138839,0.052963,94437.0,94430.0,0.056966]
[1736372139037,0.052963,94437.0,94436.0,0.001]
[1736372139640,0.1116,94438.0,94426.0,0.3608]
[1736372139842,0.1116,94438.0,94436.0,0.052963]
[1736372140344,0.1116,94438.0,94430.0,0.056966]
[1736372140545,0.163562,94438.0,94436.0,0.001]
[1736372141343,0.163562,94438.0,94434.0,0.052964]
[1736372141550,0.163562,94438.0,94435.0,0.052964]
[1736372142141,0.164562,94438.0,94435.0,0.052964]
[1736372142343,0.1467842,94437.0,94435.0,0.052964]
[1736372142745,0.1467842,94437.0,94435.0,0.03096399]
[1736372143043,0.1467842,94437.0,94410.0,0.27389601]
[1736372143255,0.052966,94431.0,94430.0,0.052967]
[1736372143444,0.052968,94428.0,94424.0,0.05297]
[1736372143646,0.3608,94436.0,94425.0,0.052969]
[1736372143647,0.052969,94426.0,94425.0,0.052969]
[1736372144251,0.1116,94427.0,94426.0,0.05297]
[1736372144447,0.4724,94427.0,94414.0,0.01058591]
[1736372144650,0.052971,94423.0,94422.0,0.052972]
[1736372146149,0.1467842,94426.0,94414.0,0.002]
[1736372146454,0.1467842,94426.0,94425.0,0.05297]
[1736372146641,0.47364001,94427.0,94426.0,0.05297]
[1736372146845,0.4724,94427.0,94426.0,0.05297]
[1736372147651,0.4724,94427.0,94426.0,0.03096999]
[1736372148248,0.19839605,94427.0,94426.0,0.03096999]
[1736372149249,0.14686132,94427.0,94426.0,0.03096999]
[1736372149652,0.14686132,94427.0,94426.0,0.03496999]
[1736372150159,0.14786132,94427.0,94426.0,0.03496999]
[1736372150543,0.14786132,94427.0,94426.0,0.03296999]
[1736372150745,0.14686132,94427.0,94426.0,0.03396999]